[Event "*** Titled Tuesday Blitz"]
[Site "Chess.com"]
[Date "2020.10.20"]
[Round "10"]
[White "natelleka"]
[Black "Xeniya2005"]
[Result "0-1"]
[WhiteElo "2194"]
[BlackElo "2384"]
[TimeControl "180+1"]
[EndTime "11:57:49 PDT"]
[Termination "Xeniya2005 won on time"]

1. e4 {[%clk 0:03:00.9]} 1... e6 {[%clk 0:02:59.8]} 2. d4 {[%clk 0:02:59]} 2...
d5 {[%clk 0:02:58.4]} 3. Nc3 {[%clk 0:02:59.3]} 3... Nf6 {[%clk 0:02:55.7]} 4.
e5 {[%clk 0:02:58.9]} 4... Nfd7 {[%clk 0:02:55.4]} 5. f4 {[%clk 0:02:59.4]} 5...
c5 {[%clk 0:02:52.6]} 6. Nf3 {[%clk 0:02:59.5]} 6... Nc6 {[%clk 0:02:51.8]} 7.
Be3 {[%clk 0:02:59.9]} 7... cxd4 {[%clk 0:02:47.9]} 8. Nxd4 {[%clk 0:02:59.2]}
8... a6 {[%clk 0:02:44.8]} 9. Qd2 {[%clk 0:02:58.8]} 9... Qc7 {[%clk 0:02:44.1]}
10. O-O-O {[%clk 0:02:55.6]} 10... Bc5 {[%clk 0:02:41.5]} 11. Be2 {[%clk
0:02:54]} 11... b5 {[%clk 0:02:37.1]} 12. g4 {[%clk 0:02:00.1]} 12... Bb7 {[%clk
0:02:31.3]} 13. Nb3 {[%clk 0:01:33.1]} 13... Bxe3 {[%clk 0:02:20.2]} 14. Qxe3
{[%clk 0:01:32.6]} 14... Rc8 {[%clk 0:02:16.1]} 15. Rd2 {[%clk 0:01:28.9]} 15...
d4 {[%clk 0:02:02.3]} 16. Nxd4 {[%clk 0:00:59.1]} 16... Nxd4 {[%clk 0:02:01.3]}
17. Rxd4 {[%clk 0:00:59.1]} 17... Bxh1 {[%clk 0:01:58.9]} 18. Bd3 {[%clk
0:00:53.9]} 18... Bb7 {[%clk 0:01:53.9]} 19. Be4 {[%clk 0:00:47.3]} 19... Nc5
{[%clk 0:01:45.7]} 20. Bxb7 {[%clk 0:00:38.4]} 20... Qxb7 {[%clk 0:01:44.9]} 21.
f5 {[%clk 0:00:38.5]} 21... b4 {[%clk 0:01:29.9]} 22. fxe6 {[%clk 0:00:21.4]}
22... Nxe6 {[%clk 0:01:26.1]} 23. Ne4 {[%clk 0:00:12.9]} 23... Qc6 {[%clk
0:01:14]} 24. Nd6+ {[%clk 0:00:11.4]} 24... Kf8 {[%clk 0:01:11.7]} 25. Nxc8
{[%clk 0:00:09]} 25... Nxd4 {[%clk 0:01:11]} 26. Qxd4 {[%clk 0:00:06.8]} 26...
Qxc8 {[%clk 0:01:09.7]} 27. Qxb4+ {[%clk 0:00:06.8]} 27... Kg8 {[%clk
0:01:08.1]} 28. Qf4 {[%clk 0:00:06.7]} 28... h5 {[%clk 0:01:02.4]} 29. g5 {[%clk
0:00:05.7]} 29... Qe6 {[%clk 0:01:01.3]} 30. b3 {[%clk 0:00:05]} 30... Kh7
{[%clk 0:01:00.3]} 31. Qe4+ {[%clk 0:00:03.9]} 31... g6 {[%clk 0:00:59.5]} 32.
Kb2 {[%clk 0:00:03.1]} 32... Rd8 {[%clk 0:00:58.2]} 33. c4 {[%clk 0:00:03.2]}
33... Rd2+ {[%clk 0:00:54.9]} 34. Kc3 {[%clk 0:00:03.8]} 34... Rxh2 {[%clk
0:00:53.8]} 35. Qf4 {[%clk 0:00:02.3]} 35... Rxa2 {[%clk 0:00:52.2]} 36. Kb4
{[%clk 0:00:01.8]} 36... a5+ {[%clk 0:00:47.3]} 37. Kc3 {[%clk 0:00:01.3]} 37...
a4 {[%clk 0:00:46.9]} 0-1

[Event "*** Titled Tuesday Blitz"]
[Site "Chess.com"]
[Date "2020.10.20"]
[Round "10"]
[White "medalja"]
[Black "Goryachkina"]
[Result "1-0"]
[WhiteElo "2465"]
[BlackElo "2644"]
[TimeControl "180+1"]
[EndTime "11:57:51 PDT"]
[Termination "medalja won by resignation"]

1. d4 {[%clk 0:03:00.9]} 1... Nf6 {[%clk 0:02:59]} 2. c4 {[%clk 0:02:58]} 2...
e6 {[%clk 0:02:59]} 3. Nf3 {[%clk 0:02:56.7]} 3... d5 {[%clk 0:02:58.7]} 4. g3
{[%clk 0:02:53.9]} 4... Bb4+ {[%clk 0:02:58.1]} 5. Bd2 {[%clk 0:02:52.2]} 5...
Be7 {[%clk 0:02:58.1]} 6. Bg2 {[%clk 0:02:52.1]} 6... O-O {[%clk 0:02:58.2]} 7.
Qc2 {[%clk 0:02:52.5]} 7... Nbd7 {[%clk 0:02:57.2]} 8. O-O {[%clk 0:02:52.7]}
8... c6 {[%clk 0:02:57]} 9. Bf4 {[%clk 0:02:51.3]} 9... b6 {[%clk 0:02:49.8]}
10. Rd1 {[%clk 0:02:50.1]} 10... Ba6 {[%clk 0:02:38.9]} 11. b3 {[%clk
0:02:47.7]} 11... Rc8 {[%clk 0:02:38.2]} 12. Nc3 {[%clk 0:02:21.9]} 12... Bb4
{[%clk 0:02:37.7]} 13. Ne5 {[%clk 0:02:09.2]} 13... Nxe5 {[%clk 0:02:27.2]} 14.
dxe5 {[%clk 0:02:08.7]} 14... Nd7 {[%clk 0:02:27.5]} 15. a3 {[%clk 0:01:52]}
15... Be7 {[%clk 0:02:23.6]} 16. h4 {[%clk 0:01:22.4]} 16... dxc4 {[%clk
0:02:15.3]} 17. bxc4 {[%clk 0:01:23.3]} 17... Bxc4 {[%clk 0:02:13.7]} 18. Rd4
{[%clk 0:01:23.3]} 18... Bd5 {[%clk 0:01:36.6]} 19. Rad1 {[%clk 0:01:10.2]}
19... c5 {[%clk 0:01:15.7]} 20. R4d2 {[%clk 0:00:55.2]} 20... Qe8 {[%clk
0:01:00.7]} 21. Nxd5 {[%clk 0:00:47.1]} 21... exd5 {[%clk 0:01:01]} 22. Bxd5
{[%clk 0:00:48]} 22... Nb8 {[%clk 0:00:32.4]} 23. e6 {[%clk 0:00:47]} 23... f6
{[%clk 0:00:31.5]} 24. Bb7 {[%clk 0:00:46.8]} 24... Nc6 {[%clk 0:00:13.8]} 25.
Bxc8 {[%clk 0:00:46.1]} 25... Qxc8 {[%clk 0:00:13.8]} 26. Rd7 {[%clk 0:00:35.8]}
26... Re8 {[%clk 0:00:13.7]} 27. Rc7 {[%clk 0:00:33.4]} 27... Qa8 {[%clk
0:00:14]} 28. Qe4 {[%clk 0:00:31]} 28... Rc8 {[%clk 0:00:10.7]} 29. Rdd7 {[%clk
0:00:24.4]} 29... Kf8 {[%clk 0:00:05.4]} 30. Rxc8+ {[%clk 0:00:20]} 30... Qxc8
{[%clk 0:00:05.1]} 31. Rc7 {[%clk 0:00:20.6]} 1-0

[Event "*** Titled Tuesday Blitz"]
[Site "Chess.com"]
[Date "2020.10.20"]
[Round "10"]
[White "lelya96"]
[Black "pfalcon1949"]
[Result "1-0"]
[WhiteElo "2166"]
[BlackElo "1987"]
[TimeControl "180+1"]
[EndTime "11:57:51 PDT"]
[Termination "lelya96 won on time"]

1. d4 {[%clk 0:03:00.9]} 1... Nf6 {[%clk 0:02:58.1]} 2. Nc3 {[%clk 0:03:01.8]}
2... d5 {[%clk 0:02:55.9]} 3. Bf4 {[%clk 0:03:02.4]} 3... e6 {[%clk 0:02:54.7]}
4. Nb5 {[%clk 0:03:01.7]} 4... Na6 {[%clk 0:02:54.7]} 5. e3 {[%clk 0:03:01]}
5... Be7 {[%clk 0:02:54.5]} 6. Bd3 {[%clk 0:02:58.7]} 6... O-O {[%clk
0:02:54.6]} 7. Ne2 {[%clk 0:02:58.1]} 7... c6 {[%clk 0:02:55.2]} 8. Nbc3 {[%clk
0:02:57.5]} 8... c5 {[%clk 0:02:55.8]} 9. dxc5 {[%clk 0:02:55.8]} 9... Nxc5
{[%clk 0:02:54.4]} 10. O-O {[%clk 0:02:55.4]} 10... Nxd3 {[%clk 0:02:53.4]} 11.
cxd3 {[%clk 0:02:54.8]} 11... Bd7 {[%clk 0:02:54]} 12. h3 {[%clk 0:02:54.5]}
12... Bc6 {[%clk 0:02:54]} 13. Nd4 {[%clk 0:02:53.1]} 13... Qd7 {[%clk
0:02:52.4]} 14. Nxc6 {[%clk 0:02:47.9]} 14... bxc6 {[%clk 0:02:51.7]} 15. d4
{[%clk 0:02:48.8]} 15... a6 {[%clk 0:02:51.3]} 16. Be5 {[%clk 0:02:47.1]} 16...
Rfc8 {[%clk 0:02:49.1]} 17. b3 {[%clk 0:02:47.1]} 17... c5 {[%clk 0:02:49.4]}
18. Rc1 {[%clk 0:02:46.7]} 18... cxd4 {[%clk 0:02:49.4]} 19. Qxd4 {[%clk
0:02:45.4]} 19... Bc5 {[%clk 0:02:47.3]} 20. Qh4 {[%clk 0:02:44.7]} 20... Be7
{[%clk 0:02:45]} 21. Na4 {[%clk 0:02:43.8]} 21... Rxc1 {[%clk 0:02:29.7]} 22.
Rxc1 {[%clk 0:02:44.7]} 22... Rc8 {[%clk 0:02:27.6]} 23. Rd1 {[%clk 0:02:41.5]}
23... Rc2 {[%clk 0:02:25.8]} 24. e4 {[%clk 0:02:34.4]} 24... Rxa2 {[%clk
0:02:16.4]} 25. exd5 {[%clk 0:02:33.9]} 25... Nxd5 {[%clk 0:02:16.3]} 26. Qg3
{[%clk 0:02:33.4]} 26... Bf8 {[%clk 0:02:14.8]} 27. Nc5 {[%clk 0:02:28.5]} 27...
Qb5 {[%clk 0:02:09.9]} 28. Ne4 {[%clk 0:02:22.4]} 28... Qe2 {[%clk 0:02:06]} 29.
Rxd5 {[%clk 0:02:15.1]} 29... exd5 {[%clk 0:01:33]} 30. Nf6+ {[%clk 0:02:14.2]}
30... Kh8 {[%clk 0:01:30.8]} 31. Ne8 {[%clk 0:02:13.1]} 31... f6 {[%clk
0:00:34.6]} 32. Nxf6 {[%clk 0:02:10.7]} 32... Qe1+ {[%clk 0:00:33.2]} 33. Kh2
{[%clk 0:02:08.4]} 33... Ra1 {[%clk 0:00:33.1]} 34. Bxa1 {[%clk 0:02:02.2]}
34... Qxa1 {[%clk 0:00:33.5]} 35. Nxd5 {[%clk 0:02:00]} 35... Qd4 {[%clk
0:00:33.4]} 36. Qf4 {[%clk 0:01:53.7]} 36... Qxf4+ {[%clk 0:00:25.6]} 37. Nxf4
{[%clk 0:01:53.6]} 37... Bd6 {[%clk 0:00:26.5]} 38. g3 {[%clk 0:01:53.7]} 38...
g5 {[%clk 0:00:27]} 39. Ne6 {[%clk 0:01:52]} 39... h6 {[%clk 0:00:24.1]} 40. Kg2
{[%clk 0:01:51.5]} 40... Kh7 {[%clk 0:00:24.5]} 41. Kf3 {[%clk 0:01:51.6]} 41...
Kg6 {[%clk 0:00:24.9]} 42. Ke4 {[%clk 0:01:51.5]} 42... Kf6 {[%clk 0:00:25.4]}
43. Nd4 {[%clk 0:01:50.5]} 43... Bc5 {[%clk 0:00:25.6]} 44. Kd5 {[%clk
0:01:48.7]} 44... Ba7 {[%clk 0:00:24.4]} 45. f3 {[%clk 0:01:48]} 45... h5 {[%clk
0:00:23.4]} 46. g4 {[%clk 0:01:46.1]} 46... hxg4 {[%clk 0:00:21.5]} 47. hxg4
{[%clk 0:01:45.7]} 47... a5 {[%clk 0:00:18.6]} 48. Nc6 {[%clk 0:01:45.1]} 48...
Bb6 {[%clk 0:00:17.6]} 49. Kc4 {[%clk 0:01:44.2]} 49... Ke6 {[%clk 0:00:12.7]}
50. Kb5 {[%clk 0:01:43.7]} 50... Bc7 {[%clk 0:00:10.4]} 51. Nxa5 {[%clk
0:01:43.1]} 51... Ke5 {[%clk 0:00:11]} 52. Nc6+ {[%clk 0:01:38.1]} 52... Kf4
{[%clk 0:00:10.9]} 53. Nd4 {[%clk 0:01:38.2]} 53... Ke3 {[%clk 0:00:11.1]} 54.
Ne6 {[%clk 0:01:37]} 54... Be5 {[%clk 0:00:09.9]} 55. Nxg5 {[%clk 0:01:35.5]}
55... Kf4 {[%clk 0:00:09.2]} 56. Nf7 {[%clk 0:01:33.2]} 56... Bf6 {[%clk
0:00:09.2]} 57. g5 {[%clk 0:01:32.6]} 57... Bg7 {[%clk 0:00:07.5]} 58. Kc6
{[%clk 0:01:29.4]} 58... Kxf3 {[%clk 0:00:08]} 59. b4 {[%clk 0:01:29.5]} 59...
Kf4 {[%clk 0:00:08]} 60. b5 {[%clk 0:01:29.8]} 1-0

[Event "*** Titled Tuesday Blitz"]
[Site "Chess.com"]
[Date "2020.10.20"]
[Round "10"]
[White "GMTalks_Youtube"]
[Black "TudorAnton"]
[Result "0-1"]
[WhiteElo "2597"]
[BlackElo "2489"]
[TimeControl "180+1"]
[EndTime "11:57:55 PDT"]
[Termination "TudorAnton won by resignation"]

1. e4 {[%clk 0:03:00.9]} 1... e5 {[%clk 0:02:40.4]} 2. Nf3 {[%clk 0:02:59.8]}
2... Nc6 {[%clk 0:02:37.2]} 3. Bc4 {[%clk 0:02:59.2]} 3... Nf6 {[%clk
0:02:35.6]} 4. d3 {[%clk 0:02:59.1]} 4... Bc5 {[%clk 0:02:20.9]} 5. c3 {[%clk
0:02:58.3]} 5... d6 {[%clk 0:02:21.3]} 6. O-O {[%clk 0:02:54.2]} 6... Bg4 {[%clk
0:02:20.2]} 7. Nbd2 {[%clk 0:02:47]} 7... Bb6 {[%clk 0:02:16.4]} 8. Re1 {[%clk
0:02:40.7]} 8... O-O {[%clk 0:02:15.4]} 9. h3 {[%clk 0:02:39.3]} 9... Be6 {[%clk
0:02:14.7]} 10. Bb5 {[%clk 0:02:37.3]} 10... Ne7 {[%clk 0:02:14.1]} 11. Nf1
{[%clk 0:02:35.6]} 11... Ng6 {[%clk 0:02:14.1]} 12. Ng3 {[%clk 0:02:34]} 12...
c6 {[%clk 0:02:13.9]} 13. Ba4 {[%clk 0:02:33.6]} 13... Re8 {[%clk 0:02:06.1]}
14. Bc2 {[%clk 0:02:09.7]} 14... d5 {[%clk 0:01:59.1]} 15. exd5 {[%clk
0:02:08.4]} 15... Bxd5 {[%clk 0:01:59.7]} 16. a4 {[%clk 0:01:54.2]} 16... a5
{[%clk 0:01:48]} 17. Ng5 {[%clk 0:01:27.8]} 17... h6 {[%clk 0:01:32.6]} 18. N5e4
{[%clk 0:01:27.2]} 18... Nxe4 {[%clk 0:01:31.7]} 19. dxe4 {[%clk 0:01:26.5]}
19... Be6 {[%clk 0:01:25.8]} 20. Qf3 {[%clk 0:01:22.1]} 20... Nh4 {[%clk
0:01:16.6]} 21. Qe2 {[%clk 0:01:19.9]} 21... Qf6 {[%clk 0:01:13]} 22. Be3 {[%clk
0:01:15.6]} 22... Bxe3 {[%clk 0:01:11.4]} 23. Qxe3 {[%clk 0:01:16.1]} 23... Rad8
{[%clk 0:01:05.3]} 24. Rad1 {[%clk 0:01:09.6]} 24... Ng6 {[%clk 0:01:05.3]} 25.
Qb6 {[%clk 0:01:07.6]} 25... Nf4 {[%clk 0:01:00.4]} 26. Qe3 {[%clk 0:00:34.9]}
26... h5 {[%clk 0:00:45]} 27. Ne2 {[%clk 0:00:34.6]} 27... Qg5 {[%clk
0:00:40.3]} 28. Nxf4 {[%clk 0:00:33.7]} 28... exf4 {[%clk 0:00:41.2]} 29. Qf3
{[%clk 0:00:33.4]} 29... g6 {[%clk 0:00:21.8]} 30. Rxd8 {[%clk 0:00:32.5]} 30...
Rxd8 {[%clk 0:00:22]} 31. Bd3 {[%clk 0:00:20.5]} 31... Bb3 {[%clk 0:00:21.8]}
32. Qe2 {[%clk 0:00:19.2]} 32... Bxa4 {[%clk 0:00:21]} 33. Kf1 {[%clk
0:00:18.1]} 33... Qc5 {[%clk 0:00:15.8]} 34. Qf3 {[%clk 0:00:16.4]} 34... Rxd3
{[%clk 0:00:15.2]} 0-1

[Event "*** Titled Tuesday Blitz"]
[Site "Chess.com"]
[Date "2020.10.20"]
[Round "10"]
[White "zmeeed67"]
[Black "chenxiaoyuer"]
[Result "0-1"]
[WhiteElo "2347"]
[BlackElo "2508"]
[TimeControl "180+1"]
[EndTime "11:57:56 PDT"]
[Termination "chenxiaoyuer won by resignation"]

1. e4 {[%clk 0:03:00.9]} 1... c5 {[%clk 0:02:59.4]} 2. g3 {[%clk 0:03:00.7]}
2... g6 {[%clk 0:02:56.1]} 3. Bg2 {[%clk 0:03:00.6]} 3... Bg7 {[%clk 0:02:56]}
4. Ne2 {[%clk 0:03:01.1]} 4... Nc6 {[%clk 0:02:52.2]} 5. O-O {[%clk 0:03:01.2]}
5... e6 {[%clk 0:02:45.7]} 6. Nbc3 {[%clk 0:03:01.5]} 6... Nge7 {[%clk
0:02:43.9]} 7. a3 {[%clk 0:03:01.8]} 7... O-O {[%clk 0:02:43.2]} 8. Rb1 {[%clk
0:03:01.9]} 8... d5 {[%clk 0:02:42.3]} 9. exd5 {[%clk 0:03:01.2]} 9... exd5
{[%clk 0:02:41.5]} 10. b4 {[%clk 0:03:00.3]} 10... d4 {[%clk 0:02:29.9]} 11. Ne4
{[%clk 0:02:58.2]} 11... cxb4 {[%clk 0:02:25.9]} 12. axb4 {[%clk 0:02:56.5]}
12... d3 {[%clk 0:02:25.2]} 13. N2c3 {[%clk 0:02:40.2]} 13... dxc2 {[%clk
0:02:22.5]} 14. Qxc2 {[%clk 0:02:39.4]} 14... Nd4 {[%clk 0:02:21.5]} 15. Qd1
{[%clk 0:02:29.6]} 15... Nef5 {[%clk 0:02:06.1]} 16. Nc5 {[%clk 0:02:23.4]}
16... Nd6 {[%clk 0:01:53.9]} 17. N3e4 {[%clk 0:02:02.5]} 17... Rb8 {[%clk
0:01:46.4]} 18. d3 {[%clk 0:01:53.9]} 18... b6 {[%clk 0:01:43.5]} 19. Nb3 {[%clk
0:01:47.9]} 19... N6b5 {[%clk 0:01:40]} 20. Be3 {[%clk 0:01:39.6]} 20... f5
{[%clk 0:01:28]} 21. Nxd4 {[%clk 0:01:38.3]} 21... Bxd4 {[%clk 0:01:21.8]} 22.
Qb3+ {[%clk 0:01:14.3]} 22... Kg7 {[%clk 0:01:17]} 23. Bxd4+ {[%clk 0:00:58.3]}
23... Nxd4 {[%clk 0:01:13.7]} 24. Qb2 {[%clk 0:00:57]} 24... fxe4 {[%clk
0:01:09.7]} 25. dxe4 {[%clk 0:00:56.4]} 25... Qf6 {[%clk 0:01:04.5]} 26. f4
{[%clk 0:00:45.9]} 26... Ne6 {[%clk 0:00:55.1]} 27. e5 {[%clk 0:00:44.8]} 27...
Qe7 {[%clk 0:00:51.5]} 28. Rbd1 {[%clk 0:00:36.3]} 28... Bb7 {[%clk 0:00:50.9]}
29. Bh3 {[%clk 0:00:33.5]} 29... Rfd8 {[%clk 0:00:48.2]} 30. Rd6 {[%clk
0:00:33.8]} 30... Rxd6 {[%clk 0:00:43.3]} 31. exd6+ {[%clk 0:00:33.9]} 31... Qf6
{[%clk 0:00:43]} 32. Qe5 {[%clk 0:00:23.6]} 32... Nd4 {[%clk 0:00:36.9]} 33. d7
{[%clk 0:00:19.1]} 33... Nf3+ {[%clk 0:00:30.3]} 34. Rxf3 {[%clk 0:00:19.1]}
34... Qxe5 {[%clk 0:00:31.2]} 35. fxe5 {[%clk 0:00:17.1]} 35... Bxf3 {[%clk
0:00:30.6]} 36. e6 {[%clk 0:00:17.3]} 36... Kf6 {[%clk 0:00:29.8]} 37. Kf2
{[%clk 0:00:17.4]} 37... Bc6 {[%clk 0:00:29.2]} 38. Ke3 {[%clk 0:00:17.9]} 38...
Ke7 {[%clk 0:00:29.1]} 39. Kd4 {[%clk 0:00:18]} 39... a5 {[%clk 0:00:28.8]} 40.
bxa5 {[%clk 0:00:16.3]} 40... bxa5 {[%clk 0:00:29.7]} 0-1

[Event "*** Titled Tuesday Blitz"]
[Site "Chess.com"]
[Date "2020.10.20"]
[Round "10"]
[White "MuhittinBuker"]
[Black "HanSchut"]
[Result "1-0"]
[WhiteElo "2113"]
[BlackElo "2245"]
[TimeControl "180+1"]
[EndTime "11:57:56 PDT"]
[Termination "MuhittinBuker won on time"]

1. d4 {[%clk 0:03:00.9]} 1... Nf6 {[%clk 0:02:54.6]} 2. c4 {[%clk 0:03:01.1]}
2... g6 {[%clk 0:02:54.3]} 3. Nc3 {[%clk 0:02:59.5]} 3... d5 {[%clk 0:02:54.7]}
4. cxd5 {[%clk 0:02:58.1]} 4... Nxd5 {[%clk 0:02:55.2]} 5. e4 {[%clk 0:02:57.4]}
5... Nxc3 {[%clk 0:02:55.7]} 6. bxc3 {[%clk 0:02:56.7]} 6... Bg7 {[%clk
0:02:56.4]} 7. Bc4 {[%clk 0:02:56.2]} 7... c5 {[%clk 0:02:57]} 8. Ne2 {[%clk
0:02:56.5]} 8... Nc6 {[%clk 0:02:57]} 9. Be3 {[%clk 0:02:57]} 9... O-O {[%clk
0:02:55.8]} 10. O-O {[%clk 0:02:56.7]} 10... Qc7 {[%clk 0:02:56.4]} 11. Rc1
{[%clk 0:02:55.9]} 11... Rd8 {[%clk 0:02:55.8]} 12. f3 {[%clk 0:02:52.7]} 12...
a6 {[%clk 0:02:54]} 13. a4 {[%clk 0:02:51.5]} 13... Ne5 {[%clk 0:02:46.2]} 14.
Ba2 {[%clk 0:02:46.1]} 14... c4 {[%clk 0:02:38.8]} 15. Bf4 {[%clk 0:02:38.5]}
15... Qc6 {[%clk 0:02:31.9]} 16. Bxe5 {[%clk 0:02:11.2]} 16... Bxe5 {[%clk
0:02:32.8]} 17. Qd2 {[%clk 0:02:11.1]} 17... Qxa4 {[%clk 0:02:14.3]} 18. Rb1
{[%clk 0:02:01.2]} 18... Qc6 {[%clk 0:02:06]} 19. Qb2 {[%clk 0:01:54.1]} 19...
Bg7 {[%clk 0:01:56]} 20. Qb6 {[%clk 0:01:42.4]} 20... Bd7 {[%clk 0:01:25.9]} 21.
Rb4 {[%clk 0:01:37.3]} 21... Bf8 {[%clk 0:01:03.7]} 22. Bxc4 {[%clk 0:01:28.6]}
22... e5 {[%clk 0:00:55.2]} 23. Qxc6 {[%clk 0:01:20.5]} 23... Bxc6 {[%clk
0:00:46.2]} 24. Rb6 {[%clk 0:01:15.8]} 24... exd4 {[%clk 0:00:43.9]} 25. cxd4
{[%clk 0:01:09.1]} 25... Rxd4 {[%clk 0:00:38.4]} 26. Rxc6 {[%clk 0:01:07.7]}
26... Rd2 {[%clk 0:00:31.6]} 27. Rc7 {[%clk 0:01:02.3]} 27... b5 {[%clk
0:00:29.9]} 28. Bxf7+ {[%clk 0:01:01.8]} 28... Kh8 {[%clk 0:00:30.5]} 29. Ng3
{[%clk 0:00:57]} 29... a5 {[%clk 0:00:22.2]} 30. Rb7 {[%clk 0:00:47.6]} 30...
Rb2 {[%clk 0:00:18.4]} 31. Rc1 {[%clk 0:00:46.6]} 31... Bd6 {[%clk 0:00:16]} 32.
Bd5 {[%clk 0:00:43.6]} 32... Bf4 {[%clk 0:00:13.9]} 33. Rc6 {[%clk 0:00:32.8]}
33... Be3+ {[%clk 0:00:10]} 34. Kf1 {[%clk 0:00:30.6]} 34... a4 {[%clk
0:00:09.5]} 35. Rcc7 {[%clk 0:00:29.6]} 35... Rf2+ {[%clk 0:00:04.3]} 36. Ke1
{[%clk 0:00:29]} 1-0

[Event "*** Titled Tuesday Blitz"]
[Site "Chess.com"]
[Date "2020.10.20"]
[Round "10"]
[White "JoachimMouhamad"]
[Black "onetowin"]
[Result "1-0"]
[WhiteElo "2286"]
[BlackElo "2113"]
[TimeControl "180+1"]
[EndTime "11:57:56 PDT"]
[Termination "JoachimMouhamad won by resignation"]

1. e4 {[%clk 0:03:00.9]} 1... c5 {[%clk 0:02:58.3]} 2. Nf3 {[%clk 0:03:00.4]}
2... e6 {[%clk 0:02:58.3]} 3. d4 {[%clk 0:03:00.7]} 3... cxd4 {[%clk 0:02:59.2]}
4. Nxd4 {[%clk 0:03:01.6]} 4... Nc6 {[%clk 0:02:58.7]} 5. Nc3 {[%clk 0:03:00.2]}
5... Qc7 {[%clk 0:02:58.6]} 6. Be3 {[%clk 0:02:57.6]} 6... a6 {[%clk 0:02:58.6]}
7. Qd2 {[%clk 0:02:55.9]} 7... Nf6 {[%clk 0:02:57.6]} 8. O-O-O {[%clk
0:02:53.1]} 8... b5 {[%clk 0:02:53]} 9. Nxc6 {[%clk 0:02:51.8]} 9... dxc6 {[%clk
0:02:53.7]} 10. f3 {[%clk 0:02:48.4]} 10... Be7 {[%clk 0:02:47.5]} 11. g4 {[%clk
0:02:29.2]} 11... O-O {[%clk 0:02:46.2]} 12. h4 {[%clk 0:02:16.4]} 12... c5
{[%clk 0:02:30.5]} 13. h5 {[%clk 0:02:11.1]} 13... Rd8 {[%clk 0:01:41.9]} 14.
Qg2 {[%clk 0:01:47.1]} 14... Bb7 {[%clk 0:01:40.3]} 15. Rxd8+ {[%clk 0:01:43.9]}
15... Rxd8 {[%clk 0:01:38.9]} 16. g5 {[%clk 0:01:42.9]} 16... Ne8 {[%clk
0:01:38.4]} 17. g6 {[%clk 0:01:34.5]} 17... fxg6 {[%clk 0:01:38.3]} 18. hxg6
{[%clk 0:01:34.1]} 18... h6 {[%clk 0:01:38.6]} 19. Qh3 {[%clk 0:01:24.5]} 19...
Qe5 {[%clk 0:01:31.6]} 20. f4 {[%clk 0:01:10.6]} 20... Qf6 {[%clk 0:01:27]} 21.
Bg2 {[%clk 0:01:06.1]} 21... b4 {[%clk 0:01:20.9]} 22. e5 {[%clk 0:00:54.9]}
22... Qf5 {[%clk 0:01:20]} 23. Qxf5 {[%clk 0:00:52.7]} 23... exf5 {[%clk
0:01:19.3]} 24. Bxb7 {[%clk 0:00:51.5]} 24... bxc3 {[%clk 0:01:18.8]} 25. Bxa6
{[%clk 0:00:43.7]} 25... cxb2+ {[%clk 0:01:14.8]} 26. Kxb2 {[%clk 0:00:42.9]}
26... Nc7 {[%clk 0:01:14]} 27. Bc4+ {[%clk 0:00:42.5]} 27... Kf8 {[%clk
0:01:12.2]} 28. a4 {[%clk 0:00:31.3]} 28... Rb8+ {[%clk 0:01:05.4]} 29. Kc3
{[%clk 0:00:31.7]} 29... Na8 {[%clk 0:01:00.3]} 30. a5 {[%clk 0:00:29.1]} 30...
Bd8 {[%clk 0:01:00.5]} 31. Bxc5+ {[%clk 0:00:26.3]} 31... Be7 {[%clk 0:00:58.6]}
32. Bxe7+ {[%clk 0:00:23.3]} 32... Kxe7 {[%clk 0:00:59.5]} 33. Rd1 {[%clk
0:00:20.6]} 33... Nc7 {[%clk 0:00:54.7]} 34. Rd6 {[%clk 0:00:19.6]} 34... Nb5+
{[%clk 0:00:53.9]} 35. Bxb5 {[%clk 0:00:19.5]} 35... Rxb5 {[%clk 0:00:54.4]} 36.
Ra6 {[%clk 0:00:19.3]} 36... h5 {[%clk 0:00:53]} 37. Ra7+ {[%clk 0:00:17.7]}
37... Ke6 {[%clk 0:00:52.6]} 38. Rxg7 {[%clk 0:00:16.7]} 38... Rxa5 {[%clk
0:00:49.2]} 39. Rh7 {[%clk 0:00:16.8]} 39... Ra4 {[%clk 0:00:46.8]} 40. Rxh5
{[%clk 0:00:15.2]} 40... Rxf4 {[%clk 0:00:44.9]} 41. Rg5 {[%clk 0:00:14.4]}
41... Rg4 {[%clk 0:00:42.7]} 42. Rxg4 {[%clk 0:00:13.2]} 42... fxg4 {[%clk
0:00:43.6]} 43. Kd3 {[%clk 0:00:13.9]} 43... g3 {[%clk 0:00:41.3]} 44. Ke3
{[%clk 0:00:14.2]} 44... g2 {[%clk 0:00:40.8]} 45. Kf2 {[%clk 0:00:14.5]} 45...
Kxe5 {[%clk 0:00:41.2]} 46. Kxg2 {[%clk 0:00:14.3]} 1-0

[Event "*** Titled Tuesday Blitz"]
[Site "Chess.com"]
[Date "2020.10.20"]
[Round "10"]
[White "paulrusan"]
[Black "jonaszmb"]
[Result "0-1"]
[WhiteElo "2227"]
[BlackElo "2393"]
[TimeControl "180+1"]
[EndTime "11:57:57 PDT"]
[Termination "jonaszmb won by checkmate"]

1. e4 {[%clk 0:03:00.9]} 1... c5 {[%clk 0:03:00.3]} 2. b4 {[%clk 0:03:00.3]}
2... cxb4 {[%clk 0:02:59.6]} 3. Bb2 {[%clk 0:03:00.5]} 3... Nc6 {[%clk
0:02:57.8]} 4. d4 {[%clk 0:03:00.3]} 4... d5 {[%clk 0:02:53.4]} 5. exd5 {[%clk
0:03:00.5]} 5... Qxd5 {[%clk 0:02:53.7]} 6. c4 {[%clk 0:03:01]} 6... Qe4+ {[%clk
0:02:14.6]} 7. Ne2 {[%clk 0:02:59.6]} 7... e5 {[%clk 0:02:04.3]} 8. Nd2 {[%clk
0:02:58.8]} 8... Qh4 {[%clk 0:01:36.3]} 9. Nf3 {[%clk 0:02:22.5]} 9... Qe4
{[%clk 0:01:30.6]} 10. d5 {[%clk 0:02:19.7]} 10... b3 {[%clk 0:01:10.3]} 11.
dxc6 {[%clk 0:02:15.9]} 11... Bb4+ {[%clk 0:01:10.1]} 12. Nd2 {[%clk 0:02:16]}
12... Nf6 {[%clk 0:01:00.8]} 13. axb3 {[%clk 0:02:03.9]} 13... O-O {[%clk
0:00:52.3]} 14. f3 {[%clk 0:02:03.4]} 14... Qe3 {[%clk 0:00:49.9]} 15. c7 {[%clk
0:01:46.4]} 15... Bf5 {[%clk 0:00:39.9]} 16. Ba3 {[%clk 0:01:41.5]} 16... Bc3
{[%clk 0:00:24.4]} 17. Rc1 {[%clk 0:01:37.8]} 17... Bd4 {[%clk 0:00:24.5]} 18.
Nb1 {[%clk 0:01:02.4]} 18... Rfd8 {[%clk 0:00:18.8]} 19. cxd8=Q+ {[%clk
0:00:59.5]} 19... Rxd8 {[%clk 0:00:19.7]} 20. Qd2 {[%clk 0:00:42.6]} 20... Qf2+
{[%clk 0:00:14]} 21. Kd1 {[%clk 0:00:42.5]} 21... Bb6 {[%clk 0:00:11.9]} 22. Bd6
{[%clk 0:00:39.2]} 22... Be3 {[%clk 0:00:09.8]} 23. Qb4 {[%clk 0:00:31.1]} 23...
Bc5 {[%clk 0:00:04]} 24. Qd2 {[%clk 0:00:25]} 24... Rxd6 {[%clk 0:00:04.1]} 25.
Qxd6 {[%clk 0:00:24.9]} 25... Bxd6 {[%clk 0:00:05]} 26. Nd2 {[%clk 0:00:24.8]}
26... Bb4 {[%clk 0:00:04.2]} 27. c5 {[%clk 0:00:22.7]} 27... h5 {[%clk
0:00:02.9]} 28. c6 {[%clk 0:00:21.5]} 28... bxc6 {[%clk 0:00:02.8]} 29. Rxc6
{[%clk 0:00:21.6]} 29... e4 {[%clk 0:00:03.3]} 30. fxe4 {[%clk 0:00:21.1]} 30...
Nxe4 {[%clk 0:00:04.2]} 31. Nxe4 {[%clk 0:00:21.1]} 31... Bxe4 {[%clk
0:00:05.1]} 32. Rc8+ {[%clk 0:00:20.5]} 32... Kh7 {[%clk 0:00:05.3]} 33. Rd8
{[%clk 0:00:18.3]} 33... Qe1# {[%clk 0:00:05.4]} 0-1